[Event "*** SCC Grand Prix: Titled Tuesday Blitz"]
[Site "Chess.com"]
[Date "2020.10.13"]
[Round "4"]
[White "RestartingChess"]
[Black "Julianos82"]
[Result "0-1"]
[WhiteElo "2525"]
[BlackElo "2317"]
[TimeControl "180+1"]
[EndTime "10:37:25 PDT"]
[Termination "Julianos82 won by resignation"]

1. e4 {[%clk 0:03:00.9]} 1... c5 {[%clk 0:02:59.6]} 2. Nf3 {[%clk 0:03:01.3]}
2... Nf6 {[%clk 0:02:59.7]} 3. e5 {[%clk 0:02:59.4]} 3... Nd5 {[%clk 0:02:59]}
4. c4 {[%clk 0:02:59.8]} 4... Nc7 {[%clk 0:02:53.7]} 5. b3 {[%clk 0:03:00.3]}
5... g6 {[%clk 0:02:39.7]} 6. Bb2 {[%clk 0:03:00.4]} 6... Bg7 {[%clk 0:02:39.9]}
7. Nc3 {[%clk 0:02:58.8]} 7... O-O {[%clk 0:02:34.5]} 8. Be2 {[%clk 0:02:58.1]}
8... Nc6 {[%clk 0:02:30.6]} 9. Ne4 {[%clk 0:02:57.3]} 9... Ne6 {[%clk
0:02:15.2]} 10. O-O {[%clk 0:02:45.3]} 10... d6 {[%clk 0:02:08.7]} 11. Qc2
{[%clk 0:02:27.9]} 11... dxe5 {[%clk 0:02:05]} 12. Rfe1 {[%clk 0:02:20.7]} 12...
b6 {[%clk 0:02:04.4]} 13. Bf1 {[%clk 0:02:20.9]} 13... Ned4 {[%clk 0:02:03.8]}
14. Nxd4 {[%clk 0:02:20.4]} 14... exd4 {[%clk 0:02:03.5]} 15. Ng3 {[%clk
0:02:17.9]} 15... Bb7 {[%clk 0:02:01.1]} 16. Bd3 {[%clk 0:02:17.1]} 16... Nb4
{[%clk 0:01:58]} 17. Qb1 {[%clk 0:02:16.7]} 17... Nxd3 {[%clk 0:01:57.6]} 18.
Qxd3 {[%clk 0:02:17.6]} 18... e5 {[%clk 0:01:56.7]} 19. f3 {[%clk 0:02:12.8]}
19... f5 {[%clk 0:01:54.5]} 20. a3 {[%clk 0:02:02.7]} 20... Qh4 {[%clk
0:01:52.6]} 21. b4 {[%clk 0:02:01]} 21... Rae8 {[%clk 0:01:52.3]} 22. bxc5
{[%clk 0:02:00.1]} 22... bxc5 {[%clk 0:01:52.1]} 23. Qf1 {[%clk 0:01:57]} 23...
e4 {[%clk 0:01:48]} 24. f4 {[%clk 0:01:55.7]} 24... Bh6 {[%clk 0:01:44.1]} 25.
Ne2 {[%clk 0:01:41.2]} 25... d3 {[%clk 0:01:44]} 26. g3 {[%clk 0:01:41.8]} 26...
dxe2 {[%clk 0:01:40.4]} 27. Qf2 {[%clk 0:01:41.5]} 27... Qe7 {[%clk 0:01:33.4]}
28. Qxe2 {[%clk 0:01:38.5]} 28... Bg7 {[%clk 0:01:32.4]} 29. Rab1 {[%clk
0:01:39.2]} 29... Rd8 {[%clk 0:01:26]} 30. Bc3 {[%clk 0:01:28.7]} 30... Bxc3
{[%clk 0:01:23.8]} 31. dxc3 {[%clk 0:01:29.6]} 31... Bc6 {[%clk 0:01:22.3]} 32.
Qe3 {[%clk 0:01:28.4]} 32... Rd7 {[%clk 0:01:17.7]} 33. Re2 {[%clk 0:01:18.5]}
33... Rfd8 {[%clk 0:01:13.2]} 34. Rbb2 {[%clk 0:01:17.1]} 34... Rd3 {[%clk
0:01:10.8]} 35. Qf2 {[%clk 0:01:14.8]} 35... e3 {[%clk 0:01:09.9]} 36. Qf1
{[%clk 0:01:14.2]} 36... Qe4 {[%clk 0:01:08.4]} 0-1

[Event "*** SCC Grand Prix: Titled Tuesday Blitz"]
[Site "Chess.com"]
[Date "2020.10.13"]
[Round "4"]
[White "novocane"]
[Black "Siemba"]
[Result "1/2-1/2"]
[WhiteElo "2276"]
[BlackElo "2422"]
[TimeControl "180+1"]
[EndTime "10:37:27 PDT"]
[Termination "Game drawn by agreement"]

1. d4 {[%clk 0:02:59.5]} 1... e5 {[%clk 0:02:49.8]} 2. dxe5 {[%clk 0:02:59.3]}
2... Nc6 {[%clk 0:02:50]} 3. Nf3 {[%clk 0:02:59]} 3... Qe7 {[%clk 0:02:50.4]} 4.
Nc3 {[%clk 0:02:57.9]} 4... Nxe5 {[%clk 0:02:50.6]} 5. e4 {[%clk 0:02:58.2]}
5... Nxf3+ {[%clk 0:02:49.5]} 6. Qxf3 {[%clk 0:02:58.1]} 6... d6 {[%clk
0:02:49.9]} 7. Bd3 {[%clk 0:02:37.2]} 7... Nf6 {[%clk 0:02:49.2]} 8. Bg5 {[%clk
0:02:35.8]} 8... c6 {[%clk 0:02:44.1]} 9. O-O {[%clk 0:02:12]} 9... Qe5 {[%clk
0:02:40.4]} 10. Bf4 {[%clk 0:01:58.8]} 10... Qh5 {[%clk 0:02:40.3]} 11. Qe3
{[%clk 0:01:43.2]} 11... Be7 {[%clk 0:02:38.1]} 12. h3 {[%clk 0:01:10.8]} 12...
O-O {[%clk 0:02:03.3]} 13. Rad1 {[%clk 0:00:57.8]} 13... Be6 {[%clk 0:01:55.8]}
14. Be2 {[%clk 0:00:52.4]} 14... Qa5 {[%clk 0:01:52]} 15. Bxd6 {[%clk
0:00:47.1]} 15... Bxd6 {[%clk 0:01:51.7]} 16. Rxd6 {[%clk 0:00:46.8]} 16... Qb4
{[%clk 0:01:52.1]} 17. e5 {[%clk 0:00:31.8]} 17... Ne8 {[%clk 0:01:49.3]} 18.
Rd2 {[%clk 0:00:22]} 18... Nc7 {[%clk 0:01:29.4]} 1/2-1/2

[Event "*** SCC Grand Prix: Titled Tuesday Blitz"]
[Site "Chess.com"]
[Date "2020.10.13"]
[Round "4"]
[White "deribas12345"]
[Black "m_ezat"]
[Result "1-0"]
[WhiteElo "2695"]
[BlackElo "2525"]
[TimeControl "180+1"]
[EndTime "10:37:33 PDT"]
[Termination "deribas12345 won by resignation"]

1. d4 {[%clk 0:02:58.8]} 1... Nf6 {[%clk 0:02:59.6]} 2. c4 {[%clk 0:02:57.8]}
2... g6 {[%clk 0:02:58.8]} 3. Nc3 {[%clk 0:02:57.6]} 3... Bg7 {[%clk 0:02:58.7]}
4. e4 {[%clk 0:02:57.6]} 4... d6 {[%clk 0:02:59.1]} 5. Nge2 {[%clk 0:02:58]}
5... O-O {[%clk 0:02:59.5]} 6. Ng3 {[%clk 0:02:58.6]} 6... h5 {[%clk 0:02:58.5]}
7. Be2 {[%clk 0:02:58.1]} 7... h4 {[%clk 0:02:57.9]} 8. Nf1 {[%clk 0:02:58.7]}
8... c5 {[%clk 0:02:57]} 9. d5 {[%clk 0:02:58.4]} 9... h3 {[%clk 0:02:56.6]} 10.
g4 {[%clk 0:02:57.9]} 10... e6 {[%clk 0:02:56.4]} 11. Ng3 {[%clk 0:02:56.7]}
11... exd5 {[%clk 0:02:56.4]} 12. cxd5 {[%clk 0:02:57.6]} 12... Re8 {[%clk
0:02:55.3]} 13. O-O {[%clk 0:02:51.6]} 13... Nbd7 {[%clk 0:02:52.9]} 14. f3
{[%clk 0:02:47.1]} 14... a6 {[%clk 0:02:48.4]} 15. a4 {[%clk 0:02:46.4]} 15...
Rb8 {[%clk 0:02:48]} 16. Bg5 {[%clk 0:02:44.8]} 16... Qa5 {[%clk 0:02:45.9]} 17.
Qd2 {[%clk 0:02:42.5]} 17... Nh7 {[%clk 0:02:35.9]} 18. Bh6 {[%clk 0:02:35.7]}
18... Bh8 {[%clk 0:02:30]} 19. Kh1 {[%clk 0:02:35.3]} 19... Qb4 {[%clk
0:02:28.2]} 20. Nf5 {[%clk 0:02:12.4]} 20... gxf5 {[%clk 0:01:53.7]} 21. gxf5
{[%clk 0:02:13.3]} 21... f6 {[%clk 0:01:52.1]} 22. f4 {[%clk 0:02:06.7]} 22...
Rxe4 {[%clk 0:01:14.1]} 23. Bh5 {[%clk 0:02:02.7]} 23... Bg7 {[%clk 0:01:05.7]}
24. Rg1 {[%clk 0:01:58.9]} 24... Re7 {[%clk 0:01:05]} 25. Rae1 {[%clk
0:01:47.2]} 25... Ne5 {[%clk 0:00:52]} 26. fxe5 {[%clk 0:01:45.1]} 26... fxe5
{[%clk 0:00:52.3]} 27. Bxg7 {[%clk 0:01:40.1]} 27... Rxg7 {[%clk 0:00:52.1]} 28.
Rxg7+ {[%clk 0:01:39.2]} 28... Kxg7 {[%clk 0:00:52.4]} 29. Rg1+ {[%clk
0:01:25.4]} 29... Kh8 {[%clk 0:00:39.9]} 30. Qh6 {[%clk 0:01:23]} 1-0

[Event "*** SCC Grand Prix: Titled Tuesday Blitz"]
[Site "Chess.com"]
[Date "2020.10.13"]
[Round "4"]
[White "SARGISMV"]
[Black "Airquake"]
[Result "1-0"]
[WhiteElo "2512"]
[BlackElo "2626"]
[TimeControl "180+1"]
[EndTime "10:37:34 PDT"]
[Termination "SARGISMV won by resignation"]

1. d4 {[%clk 0:03:00.9]} 1... Nf6 {[%clk 0:02:59.9]} 2. Nf3 {[%clk 0:03:00.8]}
2... e6 {[%clk 0:03:00.5]} 3. c4 {[%clk 0:03:00.8]} 3... d5 {[%clk 0:03:00.1]}
4. Nc3 {[%clk 0:03:00.4]} 4... Be7 {[%clk 0:02:59.8]} 5. cxd5 {[%clk 0:03:00.5]}
5... exd5 {[%clk 0:03:00]} 6. Bg5 {[%clk 0:03:00.3]} 6... Nbd7 {[%clk 0:02:58]}
7. e3 {[%clk 0:02:59.7]} 7... h6 {[%clk 0:02:58.6]} 8. Bh4 {[%clk 0:02:59.2]}
8... O-O {[%clk 0:02:55.4]} 9. Bd3 {[%clk 0:02:59.1]} 9... b6 {[%clk 0:02:54.6]}
10. O-O {[%clk 0:02:58.3]} 10... Bb7 {[%clk 0:02:54.4]} 11. Rc1 {[%clk
0:02:56.5]} 11... c5 {[%clk 0:02:53.2]} 12. Bb1 {[%clk 0:02:51]} 12... Ne4
{[%clk 0:02:49.7]} 13. Bxe7 {[%clk 0:02:46.2]} 13... Qxe7 {[%clk 0:02:49.4]} 14.
dxc5 {[%clk 0:02:46.5]} 14... Nxc3 {[%clk 0:02:47.5]} 15. Rxc3 {[%clk
0:02:45.2]} 15... Nxc5 {[%clk 0:02:46.5]} 16. Nd4 {[%clk 0:02:37.4]} 16... Rac8
{[%clk 0:02:42.1]} 17. Qg4 {[%clk 0:02:29.8]} 17... Ne4 {[%clk 0:02:36]} 18.
Bxe4 {[%clk 0:02:23.6]} 18... dxe4 {[%clk 0:02:35.9]} 19. Nf5 {[%clk 0:02:22.8]}
19... Qf6 {[%clk 0:02:35.8]} 20. Rfc1 {[%clk 0:02:18.7]} 20... Rxc3 {[%clk
0:02:26.3]} 21. Rxc3 {[%clk 0:02:19.6]} 21... Rd8 {[%clk 0:02:25.1]} 22. h3
{[%clk 0:02:11.9]} 22... Bd5 {[%clk 0:02:24.6]} 23. Rc7 {[%clk 0:02:05.8]} 23...
Be6 {[%clk 0:02:23.4]} 24. Ne7+ {[%clk 0:02:02.8]} 24... Kf8 {[%clk 0:02:01.3]}
25. Qxe4 {[%clk 0:01:56.2]} 25... Qxb2 {[%clk 0:01:55.6]} 26. Rxa7 {[%clk
0:01:21.2]} 26... Re8 {[%clk 0:01:41.1]} 27. Qh7 {[%clk 0:01:10.6]} 27... Qb1+
{[%clk 0:00:42.8]} 28. Qxb1 {[%clk 0:01:07.5]} 1-0

[Event "*** SCC Grand Prix: Titled Tuesday Blitz"]
[Site "Chess.com"]
[Date "2020.10.13"]
[Round "4"]
[White "kakakz"]
[Black "Colombiano07"]
[Result "1/2-1/2"]
[WhiteElo "2369"]
[BlackElo "2248"]
[TimeControl "180+1"]
[EndTime "10:37:34 PDT"]
[Termination "Game drawn by agreement"]

1. d4 {[%clk 0:02:56.9]} 1... d5 {[%clk 0:02:59.6]} 2. c4 {[%clk 0:02:57.8]}
2... c6 {[%clk 0:02:59.8]} 3. Nf3 {[%clk 0:02:58.6]} 3... Nf6 {[%clk 0:03:00.5]}
4. g3 {[%clk 0:02:58.9]} 4... dxc4 {[%clk 0:02:59.6]} 5. Bg2 {[%clk 0:02:57.4]}
5... b5 {[%clk 0:02:59.7]} 6. Ne5 {[%clk 0:02:57.4]} 6... Nd5 {[%clk 0:02:58.9]}
7. a4 {[%clk 0:02:58.3]} 7... a6 {[%clk 0:02:57.1]} 8. O-O {[%clk 0:02:56.1]}
8... Bb7 {[%clk 0:02:57.2]} 9. b3 {[%clk 0:02:56.4]} 9... cxb3 {[%clk 0:02:55]}
10. Qxb3 {[%clk 0:02:56.1]} 10... e6 {[%clk 0:02:55.6]} 11. Ba3 {[%clk
0:02:53.2]} 11... Bxa3 {[%clk 0:02:53.9]} 12. Nxa3 {[%clk 0:02:54.1]} 12... O-O
{[%clk 0:02:53.2]} 13. Nac4 {[%clk 0:02:51.6]} 13... Nd7 {[%clk 0:02:50.6]} 14.
Nd6 {[%clk 0:02:44.7]} 14... Qc7 {[%clk 0:02:48.7]} 15. Nxd7 {[%clk 0:02:13.1]}
15... Qxd7 {[%clk 0:02:36.5]} 16. Ne4 {[%clk 0:02:13.3]} 16... Rab8 {[%clk
0:02:29]} 17. Nc5 {[%clk 0:02:10.8]} 17... Qe7 {[%clk 0:02:28.6]} 18. e4 {[%clk
0:02:04.6]} 18... Nb6 {[%clk 0:02:26.8]} 19. a5 {[%clk 0:02:02.1]} 19... Nc4
{[%clk 0:02:25.8]} 20. Rfd1 {[%clk 0:01:53.9]} 20... e5 {[%clk 0:02:24.8]} 21.
Qb4 {[%clk 0:01:20.9]} 21... exd4 {[%clk 0:02:08.4]} 22. Rxd4 {[%clk 0:01:18]}
22... Rbd8 {[%clk 0:02:00.5]} 23. Rad1 {[%clk 0:01:16.7]} 23... Bc8 {[%clk
0:01:59.8]} 24. h3 {[%clk 0:01:02.2]} 24... Rxd4 {[%clk 0:01:56.2]} 25. Rxd4
{[%clk 0:01:01.8]} 25... Rd8 {[%clk 0:01:57.1]} 26. Ne6 {[%clk 0:00:51.9]}
1/2-1/2

[Event "*** SCC Grand Prix: Titled Tuesday Blitz"]
[Site "Chess.com"]
[Date "2020.10.13"]
[Round "4"]
[White "KuzubovYuriy"]
[Black "Keithonsky"]
[Result "1-0"]
[WhiteElo "2883"]
[BlackElo "2579"]
[TimeControl "180+1"]
[EndTime "10:37:43 PDT"]
[Termination "KuzubovYuriy won by checkmate"]

1. d4 {[%clk 0:03:00.9]} 1... d5 {[%clk 0:02:59.5]} 2. c4 {[%clk 0:03:00.2]}
2... e6 {[%clk 0:02:59.5]} 3. Nf3 {[%clk 0:02:59.7]} 3... Nf6 {[%clk 0:02:59.9]}
4. g3 {[%clk 0:02:55]} 4... Be7 {[%clk 0:03:00.1]} 5. Bg2 {[%clk 0:02:55.3]}
5... O-O {[%clk 0:03:00.9]} 6. O-O {[%clk 0:02:56]} 6... dxc4 {[%clk 0:03:01.3]}
7. Qc2 {[%clk 0:02:56.4]} 7... a6 {[%clk 0:03:01.7]} 8. a4 {[%clk 0:02:56.3]}
8... Bd7 {[%clk 0:03:01.3]} 9. Qxc4 {[%clk 0:02:56.7]} 9... Bc6 {[%clk
0:03:00.6]} 10. Bg5 {[%clk 0:02:57]} 10... Bd5 {[%clk 0:03:00.7]} 11. Qc2 {[%clk
0:02:57.2]} 11... c5 {[%clk 0:03:01]} 12. Bxf6 {[%clk 0:02:31.8]} 12... Bxf6
{[%clk 0:02:58.6]} 13. e4 {[%clk 0:02:31.8]} 13... Bc6 {[%clk 0:02:53.6]} 14.
dxc5 {[%clk 0:02:29.2]} 14... Nd7 {[%clk 0:02:52.7]} 15. Nbd2 {[%clk 0:02:04.2]}
15... Qa5 {[%clk 0:02:48.5]} 16. Rfc1 {[%clk 0:01:51.3]} 16... Rac8 {[%clk
0:02:43.4]} 17. Nb3 {[%clk 0:01:07.1]} 17... Qb4 {[%clk 0:02:42.5]} 18. Qc4
{[%clk 0:01:03.3]} 18... Qxc4 {[%clk 0:02:35.2]} 19. Rxc4 {[%clk 0:01:04.2]}
19... Bxb2 {[%clk 0:02:36.1]} 20. Rb1 {[%clk 0:01:03.6]} 20... Bf6 {[%clk
0:02:34.5]} 21. Na5 {[%clk 0:00:49.5]} 21... Rc7 {[%clk 0:02:23.2]} 22. Nxc6
{[%clk 0:00:43.5]} 22... bxc6 {[%clk 0:02:22.1]} 23. Rb6 {[%clk 0:00:33.7]}
23... a5 {[%clk 0:02:17.1]} 24. Ra6 {[%clk 0:00:32.9]} 24... Rb8 {[%clk
0:02:11.7]} 25. h4 {[%clk 0:00:32.7]} 25... h6 {[%clk 0:01:57.1]} 26. Rc2 {[%clk
0:00:24.6]} 26... Rb4 {[%clk 0:01:51.5]} 27. Rxa5 {[%clk 0:00:21.1]} 27... Rxe4
{[%clk 0:01:50.3]} 28. Ra8+ {[%clk 0:00:20.5]} 28... Nf8 {[%clk 0:01:50.7]} 29.
Nd2 {[%clk 0:00:15.4]} 29... Re1+ {[%clk 0:01:50.3]} 30. Bf1 {[%clk 0:00:15.5]}
30... g6 {[%clk 0:01:45.8]} 31. Nc4 {[%clk 0:00:15.6]} 31... Kg7 {[%clk
0:01:45.6]} 32. Nd6 {[%clk 0:00:15.9]} 32... Nd7 {[%clk 0:01:45.6]} 33. Ne8+
{[%clk 0:00:16]} 33... Kf8 {[%clk 0:01:45.6]} 34. Nxc7+ {[%clk 0:00:16.9]} 34...
Ke7 {[%clk 0:01:46.5]} 35. Re8# {[%clk 0:00:16.4]} 1-0

[Event "*** SCC Grand Prix: Titled Tuesday Blitz"]
[Site "Chess.com"]
[Date "2020.10.13"]
[Round "4"]
[White "AsaHoffmann"]
[Black "MathiasWomacka"]
[Result "0-1"]
[WhiteElo "2329"]
[BlackElo "2498"]
[TimeControl "180+1"]
[EndTime "10:37:43 PDT"]
[Termination "MathiasWomacka won by resignation"]

1. d4 {[%clk 0:02:56.5]} 1... Nf6 {[%clk 0:02:58.2]} 2. Bg5 {[%clk 0:02:55.2]}
2... Ne4 {[%clk 0:02:56.5]} 3. Bf4 {[%clk 0:02:53.6]} 3... c5 {[%clk 0:02:56.2]}
4. f3 {[%clk 0:02:48.4]} 4... Qa5+ {[%clk 0:02:55.2]} 5. c3 {[%clk 0:02:48]}
5... Nf6 {[%clk 0:02:55]} 6. d5 {[%clk 0:02:47.4]} 6... Qb6 {[%clk 0:02:53.9]}
7. e4 {[%clk 0:02:46.7]} 7... Qxb2 {[%clk 0:02:51.9]} 8. Nd2 {[%clk 0:02:46.2]}
8... Qxc3 {[%clk 0:02:50]} 9. Bc7 {[%clk 0:02:45.7]} 9... d6 {[%clk 0:02:43.4]}
10. Rb1 {[%clk 0:02:45]} 10... g6 {[%clk 0:02:29.2]} 11. Rb3 {[%clk 0:02:43.5]}
11... Qe5 {[%clk 0:02:26.9]} 12. Nc4 {[%clk 0:02:37.3]} 12... Qg5 {[%clk
0:02:20.3]} 13. Ba5 {[%clk 0:02:33.2]} 13... Nh5 {[%clk 0:01:55]} 14. Bd2 {[%clk
0:02:30]} 14... Qh4+ {[%clk 0:01:54]} 15. g3 {[%clk 0:02:21.2]} 15... Nxg3
{[%clk 0:01:53.6]} 16. hxg3 {[%clk 0:02:13]} 16... Qxh1 {[%clk 0:01:52.8]} 17.
Ne2 {[%clk 0:02:08]} 17... Bg7 {[%clk 0:01:50.3]} 18. Qb1 {[%clk 0:01:56.2]}
18... O-O {[%clk 0:01:34.1]} 19. Rxb7 {[%clk 0:01:55.1]} 19... Na6 {[%clk
0:01:16.2]} 20. Rxe7 {[%clk 0:01:50.4]} 20... Rb8 {[%clk 0:01:15.7]} 21. Qd3
{[%clk 0:01:42.2]} 21... Bh3 {[%clk 0:01:08.8]} 22. Ne3 {[%clk 0:01:33.5]} 22...
Nb4 {[%clk 0:00:59.2]} 23. Bxb4 {[%clk 0:01:25.5]} 23... Rxb4 {[%clk 0:01:00.1]}
24. Nf4 {[%clk 0:01:20.4]} 24... Bxf1 {[%clk 0:00:56.7]} 25. Nxf1 {[%clk
0:01:19.4]} 25... Rfb8 {[%clk 0:00:51.2]} 26. Ne2 {[%clk 0:00:54.3]} 26... Rb1+
{[%clk 0:00:48.6]} 0-1

[Event "*** SCC Grand Prix: Titled Tuesday Blitz"]
[Site "Chess.com"]
[Date "2020.10.13"]
[Round "4"]
[White "Yaacovn"]
[Black "kingofthenil"]
[Result "0-1"]
[WhiteElo "2732"]
[BlackElo "2458"]
[TimeControl "180+1"]
[EndTime "10:37:53 PDT"]
[Termination "kingofthenil won by resignation"]

1. d4 {[%clk 0:02:53.8]} 1... Nf6 {[%clk 0:02:57.6]} 2. e3 {[%clk 0:02:36.6]}
2... c5 {[%clk 0:02:54.3]} 3. c3 {[%clk 0:02:36.4]} 3... d5 {[%clk 0:02:49]} 4.
Bd3 {[%clk 0:02:32.4]} 4... Nc6 {[%clk 0:02:48.1]} 5. f4 {[%clk 0:02:30.2]} 5...
Bg4 {[%clk 0:02:46.3]} 6. Nf3 {[%clk 0:02:14.8]} 6... e6 {[%clk 0:02:45.8]} 7.
Nbd2 {[%clk 0:02:05]} 7... Bd6 {[%clk 0:02:45.8]} 8. O-O {[%clk 0:02:04.9]} 8...
O-O {[%clk 0:02:45.3]} 9. Qe1 {[%clk 0:01:41.1]} 9... cxd4 {[%clk 0:02:43.8]}
10. cxd4 {[%clk 0:01:40.2]} 10... Nb4 {[%clk 0:02:44]} 11. Bb1 {[%clk 0:01:40]}
11... Rc8 {[%clk 0:02:44.9]} 12. Qd1 {[%clk 0:01:38.4]} 12... Qc7 {[%clk
0:02:41.3]} 13. h3 {[%clk 0:01:37]} 13... Bxf3 {[%clk 0:02:18]} 14. Nxf3 {[%clk
0:01:36.7]} 14... Nc2 {[%clk 0:02:18.2]} 15. Bxc2 {[%clk 0:01:35.5]} 15... Qxc2
{[%clk 0:02:18.6]} 16. Bd2 {[%clk 0:01:32.6]} 16... Ne4 {[%clk 0:02:15.1]} 17.
Bc3 {[%clk 0:01:29.6]} 17... Qxd1 {[%clk 0:02:12.1]} 18. Rfxd1 {[%clk
0:01:30.5]} 18... Nxc3 {[%clk 0:02:12.5]} 19. bxc3 {[%clk 0:01:29.5]} 19... Rxc3
{[%clk 0:02:13.4]} 20. Kf2 {[%clk 0:01:29.3]} 20... Rfc8 {[%clk 0:02:10]} 21.
Ke2 {[%clk 0:01:26.9]} 21... Rc2+ {[%clk 0:02:09.6]} 22. Rd2 {[%clk 0:01:26.9]}
22... Bb4 {[%clk 0:02:09.7]} 23. Rxc2 {[%clk 0:01:26.8]} 23... Rxc2+ {[%clk
0:02:10.6]} 24. Kf1 {[%clk 0:01:26.8]} 24... Bc3 {[%clk 0:02:05.6]} 25. Rb1
{[%clk 0:01:26.5]} 25... b6 {[%clk 0:02:06]} 26. a4 {[%clk 0:01:26.1]} 26... Ra2
{[%clk 0:02:06]} 27. Rc1 {[%clk 0:01:25]} 27... Ra3 {[%clk 0:02:01.8]} 28. Ne5
{[%clk 0:01:25]} 28... f6 {[%clk 0:02:01.6]} 29. Nc6 {[%clk 0:01:23.9]} 29...
Bd2 {[%clk 0:01:58.2]} 30. Rd1 {[%clk 0:01:21.9]} 30... Bxe3 {[%clk 0:01:58.3]}
31. g3 {[%clk 0:01:06.3]} 31... Rxa4 {[%clk 0:01:57.8]} 32. Ke2 {[%clk
0:01:05.6]} 32... Rc4 {[%clk 0:01:55.2]} 33. Nd8 {[%clk 0:01:05.3]} 33... Rxd4
{[%clk 0:01:51.7]} 34. Ra1 {[%clk 0:01:03.3]} 34... Re4 {[%clk 0:01:50.9]} 35.
Kf3 {[%clk 0:01:02.1]} 35... a5 {[%clk 0:01:49.3]} 36. Nb7 {[%clk 0:01:00]}
36... Bc5 {[%clk 0:01:48.7]} 37. Nxc5 {[%clk 0:00:55.5]} 37... bxc5 {[%clk
0:01:49.6]} 38. Rxa5 {[%clk 0:00:55.5]} 38... c4 {[%clk 0:01:49.7]} 39. f5
{[%clk 0:00:52.6]} 39... exf5 {[%clk 0:01:36.6]} 40. Rxd5 {[%clk 0:00:51.9]}
40... g6 {[%clk 0:01:37.1]} 41. Rd7 {[%clk 0:00:50.3]} 41... h5 {[%clk 0:01:37]}
42. Rc7 {[%clk 0:00:49.8]} 42... Rd4 {[%clk 0:01:37]} 43. h4 {[%clk 0:00:49]}
43... Rd3+ {[%clk 0:01:37.3]} 44. Kf4 {[%clk 0:00:48.2]} 44... c3 {[%clk
0:01:37.1]} 45. Ra7 {[%clk 0:00:45.3]} 45... Rd4+ {[%clk 0:01:34.2]} 46. Ke3
{[%clk 0:00:40.9]} 46... Rc4 {[%clk 0:01:35.1]} 47. Kd3 {[%clk 0:00:38.5]} 47...
c2 {[%clk 0:01:35.3]} 0-1

[Event "*** SCC Grand Prix: Titled Tuesday Blitz"]
[Site "Chess.com"]
[Date "2020.10.13"]
[Round "4"]
[White "Anton_Demchenko"]
[Black "teacher4chess"]
[Result "1-0"]
[WhiteElo "2804"]
[BlackElo "2033"]
[TimeControl "180+1"]
[EndTime "10:37:58 PDT"]
[Termination "Anton_Demchenko won by checkmate"]

1. e4 {[%clk 0:03:00.9]} 1... Nf6 {[%clk 0:02:59]} 2. Nc3 {[%clk 0:02:59.1]}
2... d5 {[%clk 0:02:58.8]} 3. e5 {[%clk 0:02:59.3]} 3... Nfd7 {[%clk 0:02:57.1]}
4. d4 {[%clk 0:02:59.2]} 4... e6 {[%clk 0:02:56.9]} 5. Nf3 {[%clk 0:02:58.5]}
5... c5 {[%clk 0:02:56.7]} 6. Ne2 {[%clk 0:02:58.2]} 6... cxd4 {[%clk 0:02:50]}
7. Nexd4 {[%clk 0:02:59.1]} 7... Nc6 {[%clk 0:02:44]} 8. Bf4 {[%clk 0:02:59.3]}
8... a6 {[%clk 0:02:15.5]} 9. c3 {[%clk 0:02:58.3]} 9... Bc5 {[%clk 0:02:04.9]}
10. Bd3 {[%clk 0:02:55.6]} 10... Qb6 {[%clk 0:01:56.7]} 11. O-O {[%clk
0:02:43.7]} 11... Nxd4 {[%clk 0:01:49.7]} 12. cxd4 {[%clk 0:02:44]} 12... Bxd4
{[%clk 0:01:47.7]} 13. Nxd4 {[%clk 0:02:44.4]} 13... Qxd4 {[%clk 0:01:47.9]} 14.
Bg3 {[%clk 0:02:45.2]} 14... Qxb2 {[%clk 0:01:28.7]} 15. a4 {[%clk 0:02:19.1]}
15... Qb6 {[%clk 0:01:09.3]} 16. Rb1 {[%clk 0:02:16.9]} 16... Qd8 {[%clk
0:01:05.5]} 17. Qg4 {[%clk 0:02:12.7]} 17... O-O {[%clk 0:01:02]} 18. Bh4 {[%clk
0:01:57.7]} 18... Qe8 {[%clk 0:00:18.5]} 19. Rfe1 {[%clk 0:01:54.8]} 19... f5
{[%clk 0:00:16.7]} 20. exf6 {[%clk 0:01:53.9]} 20... Nxf6 {[%clk 0:00:16.6]} 21.
Qd4 {[%clk 0:01:54.6]} 21... Qf7 {[%clk 0:00:15.5]} 22. f3 {[%clk 0:01:45.4]}
22... Rb8 {[%clk 0:00:15]} 23. Bg3 {[%clk 0:01:44.7]} 23... Ra8 {[%clk
0:00:14.3]} 24. a5 {[%clk 0:01:44.7]} 24... Re8 {[%clk 0:00:13.3]} 25. Rbc1
{[%clk 0:01:42.4]} 25... Bd7 {[%clk 0:00:13.1]} 26. Rc7 {[%clk 0:01:40.6]} 26...
Rec8 {[%clk 0:00:12.1]} 27. Rxb7 {[%clk 0:01:40.6]} 27... Qe8 {[%clk 0:00:10.5]}
28. Be5 {[%clk 0:01:38.5]} 28... Bc6 {[%clk 0:00:10]} 29. Rxg7+ {[%clk
0:01:35.6]} 29... Kxg7 {[%clk 0:00:09.6]} 30. Bxf6+ {[%clk 0:01:36.3]} 30... Kg8
{[%clk 0:00:09.7]} 31. Qg4+ {[%clk 0:01:35.6]} 31... Kf8 {[%clk 0:00:09.6]} 32.
Qg7# {[%clk 0:01:34.9]} 1-0

[Event "*** SCC Grand Prix: Titled Tuesday Blitz"]
[Site "Chess.com"]
[Date "2020.10.13"]
[Round "4"]
[White "Balla_Tamas"]
[Black "MaxLeto"]
[Result "1-0"]
[WhiteElo "2458"]
[BlackElo "2302"]
[TimeControl "180+1"]
[EndTime "10:37:59 PDT"]
[Termination "Balla_Tamas won by checkmate"]

1. d4 {[%clk 0:03:00.9]} 1... Nf6 {[%clk 0:02:59.6]} 2. c4 {[%clk 0:03:00.1]}
2... g6 {[%clk 0:02:59.3]} 3. Nc3 {[%clk 0:02:59.7]} 3... Bg7 {[%clk 0:02:59]}
4. e4 {[%clk 0:03:00]} 4... d6 {[%clk 0:02:59.6]} 5. f3 {[%clk 0:02:59]} 5...
O-O {[%clk 0:02:59]} 6. Be3 {[%clk 0:02:59.5]} 6... e5 {[%clk 0:02:55.8]} 7. d5
{[%clk 0:02:56.5]} 7... Nfd7 {[%clk 0:02:48.8]} 8. g4 {[%clk 0:02:54.4]} 8... a5
{[%clk 0:02:43.4]} 9. Qd2 {[%clk 0:02:54.1]} 9... Nc5 {[%clk 0:02:42.4]} 10. h4
{[%clk 0:02:53.3]} 10... f5 {[%clk 0:02:39.1]} 11. gxf5 {[%clk 0:02:48.8]} 11...
gxf5 {[%clk 0:02:40]} 12. O-O-O {[%clk 0:02:45.7]} 12... Nbd7 {[%clk 0:00:54.3]}
13. exf5 {[%clk 0:02:36.6]} 13... Nf6 {[%clk 0:00:53.5]} 14. Bh3 {[%clk
0:02:35.5]} 14... Nh5 {[%clk 0:00:50.9]} 15. Nge2 {[%clk 0:02:34.3]} 15... Bxf5
{[%clk 0:00:48.9]} 16. Bxf5 {[%clk 0:02:33.5]} 16... Rxf5 {[%clk 0:00:49.8]} 17.
Bxc5 {[%clk 0:02:26.7]} 17... dxc5 {[%clk 0:00:38.8]} 18. Ne4 {[%clk 0:02:26.7]}
18... Qf8 {[%clk 0:00:33.3]} 19. Rdg1 {[%clk 0:02:19]} 19... Kh8 {[%clk
0:00:29.2]} 20. Kb1 {[%clk 0:02:14.9]} 20... Rxf3 {[%clk 0:00:24.4]} 21. Ng5
{[%clk 0:02:14.5]} 21... Bh6 {[%clk 0:00:23.4]} 22. Nc3 {[%clk 0:02:12.4]} 22...
Qf5+ {[%clk 0:00:21.7]} 23. Ka1 {[%clk 0:02:09.4]} 23... Rf2 {[%clk 0:00:20.6]}
24. Qe3 {[%clk 0:02:04.6]} 24... Rf8 {[%clk 0:00:17.3]} 25. a3 {[%clk
0:02:03.8]} 25... Qc2 {[%clk 0:00:15.8]} 26. Rb1 {[%clk 0:02:00.3]} 26... R2f3
{[%clk 0:00:11.7]} 27. Qxc5 {[%clk 0:01:44.8]} 27... Rxc3 {[%clk 0:00:10.3]} 28.
Rhc1 {[%clk 0:01:38.6]} 28... Qxc1 {[%clk 0:00:07.3]} 29. Rxc1 {[%clk
0:01:38.8]} 29... Rxc1+ {[%clk 0:00:08.2]} 30. Ka2 {[%clk 0:01:39.5]} 30... Nf4
{[%clk 0:00:05.5]} 31. Qe7 {[%clk 0:01:36.8]} 31... Ng6 {[%clk 0:00:03.6]} 32.
Qxh7# {[%clk 0:01:29.4]} 1-0